[Event "Early-Titled-Tuesday-Blitz-February-20-2024"]
[Site "Chess.com"]
[Date "2024.02.20"]
[Round "8"]
[White "Chesstiger64"]
[Black "sewlins"]
[Result "1-0"]
[WhiteElo "2318"]
[BlackElo "2136"]
[TimeControl "180+1"]
[EndTime "9:29:35 PST"]
[Termination "Chesstiger64 won on time"]

1. d4 {[%clk 0:02:53.7]} 1... e6 {[%clk 0:02:59.2]} 2. e4 {[%clk 0:02:52.6]}
2... d5 {[%clk 0:02:50.6]} 3. Nd2 {[%clk 0:02:52.5]} 3... Be7 {[%clk 0:02:46.6]}
4. Ngf3 {[%clk 0:02:51.8]} 4... Nf6 {[%clk 0:02:42.2]} 5. e5 {[%clk 0:02:51.1]}
5... Nfd7 {[%clk 0:02:41.7]} 6. Bd3 {[%clk 0:02:50.8]} 6... c5 {[%clk
0:02:41.9]} 7. c3 {[%clk 0:02:50.9]} 7... Nc6 {[%clk 0:02:39.9]} 8. a3 {[%clk
0:02:50.5]} 8... a5 {[%clk 0:02:37.6]} 9. O-O {[%clk 0:02:46.6]} 9... Qb6 {[%clk
0:02:19.8]} 10. dxc5 {[%clk 0:02:45.6]} 10... Nxc5 {[%clk 0:02:13]} 11. Bc2
{[%clk 0:02:36.7]} 11... Bd7 {[%clk 0:02:09]} 12. Nb3 {[%clk 0:02:31.4]} 12...
Nxb3 {[%clk 0:01:48.6]} 13. Bxb3 {[%clk 0:02:30.3]} 13... O-O {[%clk 0:01:48.6]}
14. Be3 {[%clk 0:02:29.3]} 14... Qc7 {[%clk 0:01:41.1]} 15. Bf4 {[%clk
0:02:14.2]} 15... b5 {[%clk 0:01:34.8]} 16. Qd3 {[%clk 0:02:10.7]} 16... a4
{[%clk 0:01:33.4]} 17. Bc2 {[%clk 0:02:10.6]} 17... g6 {[%clk 0:01:31.6]} 18. h4
{[%clk 0:02:04.6]} 18... Na5 {[%clk 0:01:23.9]} 19. Rae1 {[%clk 0:01:38.8]}
19... Nc4 {[%clk 0:01:16.5]} 20. Bc1 {[%clk 0:01:38.5]} 20... Rac8 {[%clk
0:00:18.5]} 21. Qd4 {[%clk 0:01:37.1]} 21... Bc5 {[%clk 0:00:17]} 22. Qf4 {[%clk
0:01:36.5]} 22... f5 {[%clk 0:00:11.4]} 23. Qh6 {[%clk 0:01:30.5]} 23... Rf7
{[%clk 0:00:10.4]} 24. Ng5 {[%clk 0:01:29.6]} 24... Bf8 {[%clk 0:00:08.5]} 25.
Nxf7 {[%clk 0:01:29.3]} 25... Bxh6 {[%clk 0:00:06.6]} 26. Nxh6+ {[%clk
0:01:29.3]} 26... Kg7 {[%clk 0:00:02.3]} 27. h5 {[%clk 0:01:13.2]} 27... Rf8
{[%clk 0:00:02]} 28. f4 {[%clk 0:01:10.8]} 28... Kxh6 {[%clk 0:00:01.4]} 29. g4
{[%clk 0:01:07.7]} 29... Kg7 {[%clk 0:00:01.9]} 30. h6+ {[%clk 0:01:04.8]} 1-0

[Event "Early-Titled-Tuesday-Blitz-February-20-2024"]
[Site "Chess.com"]
[Date "2024.02.20"]
[Round "8"]
[White "Attacker_2006"]
[Black "Shuvalov"]
[Result "0-1"]
[WhiteElo "2383"]
[BlackElo "2522"]
[TimeControl "180+1"]
[EndTime "9:29:36 PST"]
[Termination "Shuvalov won by resignation"]

1. e4 {[%clk 0:03:00.9]} 1... e6 {[%clk 0:02:04.3]} 2. Nf3 {[%clk 0:03:00]} 2...
d5 {[%clk 0:02:04.1]} 3. exd5 {[%clk 0:03:00.9]} 3... exd5 {[%clk 0:02:04.2]} 4.
d4 {[%clk 0:03:01.5]} 4... Nf6 {[%clk 0:02:04.6]} 5. h3 {[%clk 0:03:01.7]} 5...
c5 {[%clk 0:02:04]} 6. c3 {[%clk 0:02:57.1]} 6... Nc6 {[%clk 0:02:03.5]} 7. Be3
{[%clk 0:02:55.2]} 7... c4 {[%clk 0:02:03.2]} 8. Nbd2 {[%clk 0:02:50.1]} 8...
Be7 {[%clk 0:02:02.4]} 9. Be2 {[%clk 0:02:50]} 9... O-O {[%clk 0:02:02.1]} 10.
O-O {[%clk 0:02:50.6]} 10... Bf5 {[%clk 0:02:02.3]} 11. Nh4 {[%clk 0:02:44.9]}
11... Bg6 {[%clk 0:01:58.3]} 12. Nhf3 {[%clk 0:02:37.6]} 12... Re8 {[%clk
0:01:50]} 13. a4 {[%clk 0:02:33.7]} 13... Ne4 {[%clk 0:01:45.7]} 14. Nxe4 {[%clk
0:02:18.5]} 14... Bxe4 {[%clk 0:01:46.6]} 15. b3 {[%clk 0:02:12.1]} 15... cxb3
{[%clk 0:01:45]} 16. Qxb3 {[%clk 0:02:10]} 16... Na5 {[%clk 0:01:44.9]} 17. Qb5
{[%clk 0:01:40]} 17... Rc8 {[%clk 0:01:33.7]} 18. Rac1 {[%clk 0:01:30.1]} 18...
Ba3 {[%clk 0:01:26.7]} 19. Ra1 {[%clk 0:01:22.8]} 19... Bd6 {[%clk 0:01:21.4]}
20. Rac1 {[%clk 0:01:19.8]} 20... a6 {[%clk 0:01:09.8]} 21. Qb2 {[%clk
0:01:13.2]} 21... Bb8 {[%clk 0:01:02.3]} 22. Nd2 {[%clk 0:00:55.2]} 22... Qd6
{[%clk 0:01:01.7]} 23. g3 {[%clk 0:00:45.7]} 23... Bf5 {[%clk 0:00:51.5]} 24. h4
{[%clk 0:00:35.4]} 24... Rxe3 {[%clk 0:00:50.1]} 0-1

[Event "Early-Titled-Tuesday-Blitz-February-20-2024"]
[Site "Chess.com"]
[Date "2024.02.20"]
[Round "8"]
[White "Alenzer"]
[Black "brm72"]
[Result "1-0"]
[WhiteElo "2171"]
[BlackElo "2575"]
[TimeControl "180+1"]
[EndTime "9:29:36 PST"]
[Termination "Alenzer won on time"]

1. e4 {[%clk 0:02:59.7]} 1... c5 {[%clk 0:02:57]} 2. Nf3 {[%clk 0:02:57.9]} 2...
d6 {[%clk 0:02:57.1]} 3. c3 {[%clk 0:02:57.6]} 3... Nf6 {[%clk 0:02:52.9]} 4. h3
{[%clk 0:02:56.3]} 4... Nc6 {[%clk 0:02:50.5]} 5. Bd3 {[%clk 0:02:55.2]} 5... e5
{[%clk 0:02:49.2]} 6. Bc2 {[%clk 0:02:54.7]} 6... g6 {[%clk 0:02:47.4]} 7. O-O
{[%clk 0:02:54.7]} 7... Bg7 {[%clk 0:02:48.1]} 8. Re1 {[%clk 0:02:51.6]} 8...
O-O {[%clk 0:02:48.6]} 9. d4 {[%clk 0:02:51.4]} 9... exd4 {[%clk 0:02:41.2]} 10.
cxd4 {[%clk 0:02:51.4]} 10... Re8 {[%clk 0:02:38.2]} 11. d5 {[%clk 0:02:36.5]}
11... Nb4 {[%clk 0:02:36.6]} 12. Nc3 {[%clk 0:02:33.7]} 12... Nxc2 {[%clk
0:02:36.8]} 13. Qxc2 {[%clk 0:02:33.9]} 13... a6 {[%clk 0:02:35.2]} 14. Bg5
{[%clk 0:02:33.1]} 14... b5 {[%clk 0:02:27.9]} 15. Rad1 {[%clk 0:02:26.3]} 15...
b4 {[%clk 0:02:24.5]} 16. Ne2 {[%clk 0:02:15]} 16... Qa5 {[%clk 0:02:16.3]} 17.
b3 {[%clk 0:02:11.4]} 17... Nxe4 {[%clk 0:01:56.5]} 18. Bf4 {[%clk 0:02:11.4]}
18... h5 {[%clk 0:01:28.4]} 19. Ng3 {[%clk 0:02:06.8]} 19... Bf5 {[%clk
0:01:16.6]} 20. Nxe4 {[%clk 0:01:54.7]} 20... Rad8 {[%clk 0:00:38.8]} 21. Qc4
{[%clk 0:01:43.8]} 21... Bxe4 {[%clk 0:00:27.4]} 22. Rxe4 {[%clk 0:01:42.8]}
22... Rxe4 {[%clk 0:00:20.6]} 23. Qxe4 {[%clk 0:01:42.6]} 23... Qxa2 {[%clk
0:00:21.5]} 24. Qe7 {[%clk 0:01:33.6]} 24... Rc8 {[%clk 0:00:16.5]} 25. Ng5
{[%clk 0:01:31.2]} 25... Qxb3 {[%clk 0:00:08.3]} 26. Qxf7+ {[%clk 0:01:17.4]}
26... Kh8 {[%clk 0:00:07.7]} 27. Re1 {[%clk 0:01:01.8]} 27... Qc2 {[%clk
0:00:01.3]} 28. Re8+ {[%clk 0:00:53.9]} 28... Bf8 {[%clk 0:00:01.4]} 29. Rxf8+
{[%clk 0:00:53.2]} 1-0

[Event "Early-Titled-Tuesday-Blitz-February-20-2024"]
[Site "Chess.com"]
[Date "2024.02.20"]
[Round "8"]
[White "N_Mullodzhanov"]
[Black "Navyblue1"]
[Result "1-0"]
[WhiteElo "2478"]
[BlackElo "2166"]
[TimeControl "180+1"]
[EndTime "9:29:40 PST"]
[Termination "N_Mullodzhanov won on time"]

1. e4 {[%clk 0:03:00.9]} 1... c5 {[%clk 0:02:53.1]} 2. c3 {[%clk 0:03:00.7]}
2... Nf6 {[%clk 0:02:45.3]} 3. e5 {[%clk 0:02:59.8]} 3... Nd5 {[%clk 0:02:43.4]}
4. Nf3 {[%clk 0:02:59.9]} 4... d6 {[%clk 0:02:40.6]} 5. exd6 {[%clk 0:02:59.1]}
5... Qxd6 {[%clk 0:02:38.9]} 6. d4 {[%clk 0:02:59.2]} 6... cxd4 {[%clk
0:02:32.7]} 7. Nxd4 {[%clk 0:02:59]} 7... e6 {[%clk 0:02:30.2]} 8. Nd2 {[%clk
0:02:56.3]} 8... Be7 {[%clk 0:02:26.1]} 9. Nc4 {[%clk 0:02:51.9]} 9... Qd8
{[%clk 0:02:24.1]} 10. Be2 {[%clk 0:02:46.8]} 10... O-O {[%clk 0:02:07.2]} 11.
O-O {[%clk 0:02:46.4]} 11... Nd7 {[%clk 0:02:04.2]} 12. Bf3 {[%clk 0:02:42.7]}
12... N7f6 {[%clk 0:01:59.9]} 13. Ne3 {[%clk 0:02:39.4]} 13... a6 {[%clk
0:01:28.9]} 14. Re1 {[%clk 0:02:32.4]} 14... Bc5 {[%clk 0:01:16]} 15. Nb3 {[%clk
0:02:16.6]} 15... Nxe3 {[%clk 0:01:06.2]} 16. Bxe3 {[%clk 0:02:13]} 16... Bxe3
{[%clk 0:01:04.7]} 17. Rxe3 {[%clk 0:02:10.7]} 17... Qc7 {[%clk 0:01:01.4]} 18.
Qc2 {[%clk 0:02:07.2]} 18... Bd7 {[%clk 0:00:49.2]} 19. Nd4 {[%clk 0:02:00.1]}
19... Rac8 {[%clk 0:00:39]} 20. Rd1 {[%clk 0:01:58]} 20... Rfd8 {[%clk
0:00:27.2]} 21. g3 {[%clk 0:01:54.6]} 21... Be8 {[%clk 0:00:17.4]} 22. Bg2
{[%clk 0:01:53.9]} 22... Nd5 {[%clk 0:00:16.4]} 23. Re2 {[%clk 0:01:47.3]} 23...
b5 {[%clk 0:00:16]} 24. Red2 {[%clk 0:01:45.3]} 24... b4 {[%clk 0:00:15.6]} 25.
cxb4 {[%clk 0:01:36.8]} 25... Nxb4 {[%clk 0:00:12.8]} 26. Qb3 {[%clk 0:01:36.5]}
26... Nd5 {[%clk 0:00:11.7]} 27. Rc2 {[%clk 0:01:29.2]} 27... Qb8 {[%clk
0:00:11.2]} 28. Rxc8 {[%clk 0:01:24.8]} 28... Qxb3 {[%clk 0:00:07.6]} 29. Nxb3
{[%clk 0:01:22.2]} 29... Rxc8 {[%clk 0:00:06.5]} 30. Bxd5 {[%clk 0:01:21.2]}
30... exd5 {[%clk 0:00:06.6]} 31. Rxd5 {[%clk 0:01:17.5]} 31... g6 {[%clk
0:00:06.1]} 32. Rd6 {[%clk 0:01:15.1]} 32... Bb5 {[%clk 0:00:05.4]} 33. Nd4
{[%clk 0:01:11]} 33... Rc1+ {[%clk 0:00:05.1]} 34. Kg2 {[%clk 0:01:11.5]} 34...
Rb1 {[%clk 0:00:04.4]} 35. b3 {[%clk 0:01:07.9]} 35... Ra1 {[%clk 0:00:02.6]}
36. a4 {[%clk 0:01:08.1]} 36... Bf1+ {[%clk 0:00:01.8]} 37. Kf3 {[%clk
0:01:08.7]} 1-0

[Event "Early-Titled-Tuesday-Blitz-February-20-2024"]
[Site "Chess.com"]
[Date "2024.02.20"]
[Round "8"]
[White "KanalSzachowy"]
[Black "Zavgorodniy_Sergiy"]
[Result "1/2-1/2"]
[WhiteElo "2450"]
[BlackElo "2613"]
[TimeControl "180+1"]
[EndTime "9:29:42 PST"]
[Termination "Game drawn by repetition"]

1. e4 {[%clk 0:03:00.9]} 1... c6 {[%clk 0:03:00]} 2. d4 {[%clk 0:03:00.1]} 2...
d5 {[%clk 0:03:00.9]} 3. f3 {[%clk 0:03:00.7]} 3... dxe4 {[%clk 0:03:00.8]} 4.
fxe4 {[%clk 0:03:01.6]} 4... e5 {[%clk 0:03:01.4]} 5. Nf3 {[%clk 0:03:01.3]}
5... Bg4 {[%clk 0:03:01.5]} 6. Bc4 {[%clk 0:03:01.6]} 6... Nd7 {[%clk
0:03:01.2]} 7. c3 {[%clk 0:03:02.1]} 7... b5 {[%clk 0:03:01]} 8. Bd3 {[%clk
0:02:59]} 8... Ngf6 {[%clk 0:02:56.1]} 9. O-O {[%clk 0:02:58.9]} 9... Bd6 {[%clk
0:02:55.6]} 10. h3 {[%clk 0:02:58.7]} 10... Bh5 {[%clk 0:02:55.4]} 11. Qe1
{[%clk 0:02:57.9]} 11... O-O {[%clk 0:02:51.8]} 12. Bg5 {[%clk 0:02:57.8]} 12...
Qc7 {[%clk 0:02:51.5]} 13. Nbd2 {[%clk 0:02:57.1]} 13... Rae8 {[%clk 0:02:50.2]}
14. Bc2 {[%clk 0:02:41.2]} 14... Bg6 {[%clk 0:02:45.3]} 15. Nxe5 {[%clk
0:02:35.3]} 15... Nxe5 {[%clk 0:02:35.4]} 16. Bxf6 {[%clk 0:02:35]} 16... gxf6
{[%clk 0:02:26.9]} 17. dxe5 {[%clk 0:02:23.2]} 17... Bxe5 {[%clk 0:02:27]} 18.
Qh4 {[%clk 0:02:21.8]} 18... b4 {[%clk 0:01:53.9]} 19. cxb4 {[%clk 0:02:07.7]}
19... Qb6+ {[%clk 0:01:49.4]} 20. Kh1 {[%clk 0:02:08.3]} 20... Qxb4 {[%clk
0:01:46.9]} 21. Nf3 {[%clk 0:02:07.6]} 21... Qxb2 {[%clk 0:01:43.7]} 22. Nxe5
{[%clk 0:02:07.7]} 22... fxe5 {[%clk 0:01:14.8]} 23. Ba4 {[%clk 0:02:01.7]}
23... Re6 {[%clk 0:01:04.3]} 24. Bb3 {[%clk 0:01:56.3]} 24... Rd6 {[%clk
0:01:02.3]} 25. Rab1 {[%clk 0:01:49.4]} 25... Qe2 {[%clk 0:00:53.9]} 26. Qe7
{[%clk 0:01:41.9]} 26... Rd2 {[%clk 0:00:49.7]} 27. Bxf7+ {[%clk 0:01:37.3]}
27... Rxf7 {[%clk 0:00:23.2]} 28. Rb8+ {[%clk 0:01:37.1]} 28... Kg7 {[%clk
0:00:22.6]} 29. Rxf7+ {[%clk 0:01:35.9]} 29... Bxf7 {[%clk 0:00:18.3]} 30. Qxe5+
{[%clk 0:01:36.5]} 30... Kg6 {[%clk 0:00:16]} 31. Qg3+ {[%clk 0:01:36.3]} 31...
Kh6 {[%clk 0:00:14.6]} 32. Qf4+ {[%clk 0:01:08.4]} 32... Kg6 {[%clk 0:00:13]}
33. Qf5+ {[%clk 0:01:04.6]} 33... Kh6 {[%clk 0:00:13.2]} 34. Qf4+ {[%clk
0:01:04.2]} 34... Kg6 {[%clk 0:00:13.3]} 35. Qf5+ {[%clk 0:01:00.5]} 35... Kh6
{[%clk 0:00:13.6]} 36. Qf4+ {[%clk 0:00:55.4]} 1/2-1/2

[Event "Early-Titled-Tuesday-Blitz-February-20-2024"]
[Site "Chess.com"]
[Date "2024.02.20"]
[Round "8"]
[White "masnyszachistaaa"]
[Black "LuisFSiles"]
[Result "0-1"]
[WhiteElo "2567"]
[BlackElo "2340"]
[TimeControl "180+1"]
[EndTime "9:29:44 PST"]
[Termination "LuisFSiles won on time"]

1. e4 {[%clk 0:03:00.9]} 1... c5 {[%clk 0:02:59.2]} 2. Nf3 {[%clk 0:03:00.2]}
2... Nc6 {[%clk 0:02:59.1]} 3. a3 {[%clk 0:02:43.4]} 3... Nf6 {[%clk 0:02:50.5]}
4. Nc3 {[%clk 0:02:19.5]} 4... d5 {[%clk 0:02:35.2]} 5. exd5 {[%clk 0:02:06.5]}
5... Nxd5 {[%clk 0:02:33.7]} 6. Bc4 {[%clk 0:02:06.6]} 6... e6 {[%clk
0:02:31.9]} 7. O-O {[%clk 0:02:04.1]} 7... Be7 {[%clk 0:02:32.3]} 8. d3 {[%clk
0:01:46.2]} 8... O-O {[%clk 0:02:29.2]} 9. Re1 {[%clk 0:01:46.1]} 9... a6 {[%clk
0:02:26.9]} 10. Ne4 {[%clk 0:01:30.6]} 10... b5 {[%clk 0:02:21.8]} 11. Ba2
{[%clk 0:01:30.3]} 11... Bb7 {[%clk 0:02:22.4]} 12. Ng3 {[%clk 0:01:18.6]} 12...
Nd4 {[%clk 0:02:12.4]} 13. Nxd4 {[%clk 0:01:13.3]} 13... cxd4 {[%clk 0:02:12.4]}
14. Bd2 {[%clk 0:00:41.9]} 14... Rc8 {[%clk 0:02:11.2]} 15. Rc1 {[%clk
0:00:41.4]} 15... Bg5 {[%clk 0:01:56.1]} 16. Ne4 {[%clk 0:00:29.3]} 16... Bxd2
{[%clk 0:01:50.7]} 17. Qxd2 {[%clk 0:00:30.2]} 17... Qh4 {[%clk 0:01:38.3]} 18.
Nd6 {[%clk 0:00:22.8]} 18... Nf4 {[%clk 0:01:22.8]} 19. Nxb7 {[%clk 0:00:20.5]}
19... Qg5 {[%clk 0:01:21.8]} 20. g3 {[%clk 0:00:12.2]} 20... Nh3+ {[%clk
0:01:20.8]} 21. Kg2 {[%clk 0:00:12.7]} 21... Qxd2 {[%clk 0:01:21.4]} 22. Kxh3
{[%clk 0:00:13.2]} 22... Qxf2 {[%clk 0:01:11.5]} 23. Bb3 {[%clk 0:00:11.7]}
23... Rc7 {[%clk 0:01:10.4]} 24. Nd6 {[%clk 0:00:11.3]} 24... Rc5 {[%clk
0:01:08.6]} 25. Re4 {[%clk 0:00:02.3]} 25... Rh5+ {[%clk 0:01:04.6]} 26. Rh4
{[%clk 0:00:01.9]} 26... Rxh4+ {[%clk 0:01:05]} 27. Kxh4 {[%clk 0:00:02.8]}
27... Qxh2+ {[%clk 0:01:03.7]} 28. Kg4 {[%clk 0:00:03.4]} 28... Qe2+ {[%clk
0:01:03.8]} 29. Kh3 {[%clk 0:00:03.2]} 29... f5 {[%clk 0:00:48.7]} 30. Rg1
{[%clk 0:00:01.4]} 30... Qe5 {[%clk 0:00:46]} 0-1

[Event "Early-Titled-Tuesday-Blitz-February-20-2024"]
[Site "Chess.com"]
[Date "2024.02.20"]
[Round "8"]
[White "ProChessWICTH"]
[Black "Ati1517"]
[Result "0-1"]
[WhiteElo "2465"]
[BlackElo "2245"]
[TimeControl "180+1"]
[EndTime "9:29:44 PST"]
[Termination "Ati1517 won on time"]

1. e4 {[%clk 0:02:54.3]} 1... c5 {[%clk 0:03:00.2]} 2. Nf3 {[%clk 0:02:53.9]}
2... d6 {[%clk 0:03:00.5]} 3. c3 {[%clk 0:02:53.8]} 3... Nf6 {[%clk 0:03:00.6]}
4. h3 {[%clk 0:02:53.8]} 4... Nc6 {[%clk 0:02:59.3]} 5. Bd3 {[%clk 0:02:53.9]}
5... e6 {[%clk 0:02:57]} 6. O-O {[%clk 0:02:53.7]} 6... d5 {[%clk 0:02:57.5]} 7.
exd5 {[%clk 0:02:52.5]} 7... exd5 {[%clk 0:02:58.4]} 8. Re1+ {[%clk 0:02:51.7]}
8... Be7 {[%clk 0:02:59]} 9. Bc2 {[%clk 0:02:52.4]} 9... O-O {[%clk 0:02:59.3]}
10. d4 {[%clk 0:02:53.1]} 10... Be6 {[%clk 0:02:59.1]} 11. dxc5 {[%clk
0:02:50.6]} 11... Bxc5 {[%clk 0:02:58.3]} 12. Nbd2 {[%clk 0:02:51.2]} 12... Qb6
{[%clk 0:02:57.6]} 13. Qe2 {[%clk 0:02:42.4]} 13... Rfe8 {[%clk 0:02:52.5]} 14.
Qf1 {[%clk 0:02:41.7]} 14... d4 {[%clk 0:02:44.4]} 15. Nb3 {[%clk 0:02:17.2]}
15... Bxb3 {[%clk 0:02:39.4]} 16. Bxb3 {[%clk 0:02:18.1]} 16... dxc3 {[%clk
0:02:39.2]} 17. bxc3 {[%clk 0:02:18.2]} 17... Rxe1 {[%clk 0:02:37.7]} 18. Nxe1
{[%clk 0:02:17.4]} 18... Ne4 {[%clk 0:02:35.9]} 19. Nd3 {[%clk 0:02:15.5]} 19...
Rd8 {[%clk 0:02:30.5]} 20. Nxc5 {[%clk 0:01:26.3]} 20... Qxc5 {[%clk 0:02:31.4]}
21. Be3 {[%clk 0:01:21.5]} 21... Qxc3 {[%clk 0:02:28.6]} 22. Rc1 {[%clk
0:01:21.7]} 22... Qe5 {[%clk 0:02:27.8]} 23. Qc4 {[%clk 0:01:18.3]} 23... Nd6
{[%clk 0:02:22.2]} 24. Qh4 {[%clk 0:01:03.8]} 24... Re8 {[%clk 0:02:10.8]} 25.
Rc5 {[%clk 0:00:42.9]} 25... Qe7 {[%clk 0:01:52.1]} 26. Qg4 {[%clk 0:00:32.1]}
26... Qe4 {[%clk 0:01:48.9]} 27. Qg3 {[%clk 0:00:15.9]} 27... Nf5 {[%clk
0:01:48]} 28. Qc7 {[%clk 0:00:14]} 28... Nxe3 {[%clk 0:01:46.8]} 29. Qxf7+
{[%clk 0:00:13.8]} 29... Kh8 {[%clk 0:01:45.5]} 30. fxe3 {[%clk 0:00:13.3]}
30... Qxe3+ {[%clk 0:01:45.7]} 31. Kh2 {[%clk 0:00:13.9]} 31... Qe7 {[%clk
0:01:44.7]} 32. Qd5 {[%clk 0:00:10.5]} 32... Qc7+ {[%clk 0:01:42.9]} 33. Kg1
{[%clk 0:00:09.5]} 33... Qg3 {[%clk 0:01:42.5]} 34. Rc1 {[%clk 0:00:07.8]} 34...
Qe3+ {[%clk 0:01:40.3]} 35. Kh2 {[%clk 0:00:07.5]} 35... Qxc1 {[%clk 0:01:39]}
36. Qf7 {[%clk 0:00:08.1]} 36... Qe3 {[%clk 0:01:38.2]} 37. Bc2 {[%clk
0:00:07.4]} 37... Qe5+ {[%clk 0:01:37.8]} 38. Kh1 {[%clk 0:00:05.6]} 38... Qe6
{[%clk 0:01:26.9]} 39. Qh5 {[%clk 0:00:04.2]} 39... h6 {[%clk 0:01:26.5]} 40.
Qf3 {[%clk 0:00:02.3]} 40... Qe1+ {[%clk 0:01:24.4]} 41. Kh2 {[%clk 0:00:02.3]}
41... Qe5+ {[%clk 0:01:24.9]} 42. Kh1 {[%clk 0:00:01.5]} 42... Nd4 {[%clk
0:01:25.3]} 43. Qd3 {[%clk 0:00:01.4]} 43... Nxc2 {[%clk 0:01:25.4]} 44. Qxc2
{[%clk 0:00:02.3]} 44... Qe1+ {[%clk 0:01:25.5]} 45. Kh2 {[%clk 0:00:02.3]}
45... Qe5+ {[%clk 0:01:25.5]} 46. Kh1 {[%clk 0:00:02.2]} 46... Rf8 {[%clk
0:01:25.7]} 0-1

[Event "Early-Titled-Tuesday-Blitz-February-20-2024"]
[Site "Chess.com"]
[Date "2024.02.20"]
[Round "8"]
[White "bazar-wokzal"]
[Black "Zq1"]
[Result "1-0"]
[WhiteElo "2689"]
[BlackElo "2517"]
[TimeControl "180+1"]
[EndTime "9:29:45 PST"]
[Termination "bazar-wokzal won by resignation"]

1. e4 {[%clk 0:02:41.2]} 1... c5 {[%clk 0:02:59.2]} 2. c3 {[%clk 0:02:36.5]}
2... d5 {[%clk 0:02:57.3]} 3. exd5 {[%clk 0:02:36.3]} 3... Nf6 {[%clk
0:02:57.3]} 4. Bb5+ {[%clk 0:02:34.2]} 4... Bd7 {[%clk 0:02:56.4]} 5. Bxd7+
{[%clk 0:02:33.7]} 5... Qxd7 {[%clk 0:02:56.3]} 6. c4 {[%clk 0:02:33.7]} 6... e6
{[%clk 0:02:54.5]} 7. Qe2 {[%clk 0:02:33.5]} 7... Be7 {[%clk 0:02:53.1]} 8. dxe6
{[%clk 0:02:33.1]} 8... fxe6 {[%clk 0:02:49.8]} 9. Nf3 {[%clk 0:02:32.5]} 9...
Nc6 {[%clk 0:02:49.6]} 10. O-O {[%clk 0:02:31.8]} 10... O-O {[%clk 0:02:47.8]}
11. Nc3 {[%clk 0:02:31.5]} 11... Nd4 {[%clk 0:02:43.5]} 12. Nxd4 {[%clk
0:02:24.7]} 12... cxd4 {[%clk 0:02:43]} 13. Ne4 {[%clk 0:02:24.2]} 13... d3
{[%clk 0:02:42.9]} 14. Nxf6+ {[%clk 0:02:08.2]} 14... Rxf6 {[%clk 0:02:41.8]}
15. Qe3 {[%clk 0:02:03.8]} 15... b6 {[%clk 0:02:40.2]} 16. b4 {[%clk 0:01:38.1]}
16... Bxb4 {[%clk 0:02:36.6]} 17. Bb2 {[%clk 0:01:38.1]} 17... Bc5 {[%clk
0:02:34]} 18. Qe4 {[%clk 0:01:36.3]} 18... Rff8 {[%clk 0:02:12.3]} 19. Rae1
{[%clk 0:01:34.9]} 19... Rae8 {[%clk 0:02:03.9]} 20. g3 {[%clk 0:01:27.5]} 20...
Rf7 {[%clk 0:01:51.3]} 21. Kg2 {[%clk 0:01:26.8]} 21... Qb7 {[%clk 0:01:49.7]}
22. f4 {[%clk 0:01:18.9]} 22... g6 {[%clk 0:01:40.2]} 23. Rf3 {[%clk 0:01:13.7]}
23... Qxe4 {[%clk 0:01:38.9]} 24. Rxe4 {[%clk 0:01:14.6]} 24... Rd7 {[%clk
0:01:37.4]} 25. Bc3 {[%clk 0:01:10]} 25... h5 {[%clk 0:01:29.7]} 26. h3 {[%clk
0:01:09.7]} 26... Kf7 {[%clk 0:01:24.4]} 27. g4 {[%clk 0:01:10]} 27... hxg4
{[%clk 0:01:24]} 28. hxg4 {[%clk 0:01:10.9]} 28... a5 {[%clk 0:01:09.5]} 29. Rh3
{[%clk 0:01:06.9]} 29... Ke7 {[%clk 0:01:05.5]} 30. Kf3 {[%clk 0:00:59.5]} 30...
Kd8 {[%clk 0:01:00.1]} 31. Rh6 {[%clk 0:00:55.6]} 31... Rf7 {[%clk 0:00:40.4]}
32. Rxg6 {[%clk 0:00:53.4]} 32... Kd7 {[%clk 0:00:40.5]} 33. g5 {[%clk
0:00:48.2]} 33... Rh7 {[%clk 0:00:38.2]} 34. Rh6 {[%clk 0:00:47.8]} 34... Rf7
{[%clk 0:00:24.4]} 35. g6 {[%clk 0:00:44.5]} 35... Rf5 {[%clk 0:00:24.1]} 36. g7
{[%clk 0:00:40.2]} 1-0

[Event "Early-Titled-Tuesday-Blitz-February-20-2024"]
[Site "Chess.com"]
[Date "2024.02.20"]
[Round "8"]
[White "Vaathi_Coming"]
[Black "tsaruk_maks"]
[Result "1-0"]
[WhiteElo "2910"]
[BlackElo "2745"]
[TimeControl "180+1"]
[EndTime "9:29:46 PST"]
[Termination "Vaathi_Coming won on time"]

1. b3 {[%clk 0:03:00.9]} 1... e5 {[%clk 0:02:57.9]} 2. Bb2 {[%clk 0:03:01.8]}
2... Nc6 {[%clk 0:02:57.4]} 3. c4 {[%clk 0:03:01.9]} 3... Nf6 {[%clk 0:02:52.4]}
4. Nf3 {[%clk 0:03:02]} 4... e4 {[%clk 0:02:51.3]} 5. Nd4 {[%clk 0:03:02]} 5...
Nxd4 {[%clk 0:02:50.3]} 6. Bxd4 {[%clk 0:03:01.5]} 6... d5 {[%clk 0:02:49.6]} 7.
cxd5 {[%clk 0:02:40.4]} 7... Nxd5 {[%clk 0:02:46.8]} 8. Nc3 {[%clk 0:02:22.9]}
8... Bf5 {[%clk 0:02:43.2]} 9. g3 {[%clk 0:02:18.6]} 9... c5 {[%clk 0:02:41.4]}
10. Be3 {[%clk 0:02:11.4]} 10... Nxc3 {[%clk 0:02:31.4]} 11. dxc3 {[%clk
0:02:11.1]} 11... Qf6 {[%clk 0:02:31.3]} 12. Qc2 {[%clk 0:02:08.5]} 12... O-O-O
{[%clk 0:02:31]} 13. Bg2 {[%clk 0:02:07.3]} 13... Bd6 {[%clk 0:02:29]} 14. O-O
{[%clk 0:02:05.4]} 14... g5 {[%clk 0:02:27.3]} 15. Bxe4 {[%clk 0:01:58.5]} 15...
Bh3 {[%clk 0:02:19.5]} 16. Rfd1 {[%clk 0:01:54.8]} 16... h5 {[%clk 0:02:18.5]}
17. Rd5 {[%clk 0:01:51.7]} 17... Be5 {[%clk 0:01:39.6]} 18. Rxc5+ {[%clk
0:01:25.3]} 18... Kb8 {[%clk 0:01:39.5]} 19. Bxb7 {[%clk 0:01:21.2]} 19... Bf4
{[%clk 0:01:02.4]} 20. Bxf4+ {[%clk 0:01:09.6]} 20... gxf4 {[%clk 0:01:02.1]}
21. Rb5 {[%clk 0:01:10.2]} 21... a6 {[%clk 0:00:47.9]} 22. Rb4 {[%clk
0:01:02.8]} 22... fxg3 {[%clk 0:00:36]} 23. hxg3 {[%clk 0:00:58.8]} 23... Ka7
{[%clk 0:00:32.4]} 24. Bf3 {[%clk 0:00:42.7]} 24... Rb8 {[%clk 0:00:10.8]} 25.
Qe4 {[%clk 0:00:40.1]} 25... Rxb4 {[%clk 0:00:09.1]} 26. Qxb4 {[%clk 0:00:41]}
26... Rb8 {[%clk 0:00:03]} 27. Qc5+ {[%clk 0:00:40.1]} 1-0